fUSD/lending_fUSD_20250716
["ID","MTS","AMOUNT","RATE_DAILY","PERIOD"]
[372403765,1752629453333,-2298.17,0.00021917,2]
[372403766,1752629453343,-2298.17,0.00021917,2]
[372403767,1752629453352,-2298.17,0.00021917,2]
[372403768,1752629453362,-2298.17,0.00021917,2]
[372403769,1752629453371,-2298.17,0.00021917,2]
[372403770,1752629453381,-2298.17,0.00021917,2]
[372403771,1752629453391,-460.0,0.00021917,2]
[372403772,1752629453401,-460.0,0.00021917,2]
[372403773,1752629453411,-2298.17,0.00021917,2]
[372403774,1752629453421,-460.0,0.00021917,2]
[372403775,1752629453430,-2298.17,0.00021917,2]
[372403776,1752629453440,-2298.17,0.00021917,2]
[372403777,1752629453449,-2298.17,0.00021917,2]
[372403778,1752629453459,-460.0,0.00021917,2]
[372403779,1752629453469,-412.26946396,0.00021917,2]
[372403780,1752629453479,-460.0,0.00021917,2]
[372403781,1752629453489,-513.14,0.00021917,2]
[372403782,1752629453499,-460.0,0.00021917,2]
[372403783,1752629453509,-2091.53,0.00021917,2]
[372403784,1752629453518,-702.07,0.00021917,2]
[372403785,1752629453528,-3225.68,0.00021917,2]
[372403786,1752629453538,-570.05756704,0.00021917,2]
[372403787,1752629453547,-1555.68,0.00021917,2]
[372403788,1752629453557,-2030.63,0.00021917,2]
[372403789,1752629453567,-460.0,0.00021917,2]
[372403790,1752629453757,-2603.73,0.00021917,2]
[372403791,1752629453768,-460.0,0.00021917,2]
[372403792,1752629453778,-460.0,0.00021917,2]
[372403793,1752629453788,-460.0,0.00021917,2]
[372403794,1752629453798,-942.67,0.00021917,2]
[372403795,1752629453808,-572.86839752,0.00021917,2]
[372403796,1752629453818,-929.05,0.00021917,2]
[372403797,1752629453828,-460.0,0.00021917,2]
[372403798,1752629453838,-568.59,0.00021917,2]
[372403799,1752629453848,-461.91797327,0.00021917,2]
[372403800,1752629453858,-460.0,0.00021917,2]
[372403801,1752629453868,-996.07,0.00021917,2]
[372403802,1752629453878,-1165.62,0.00021917,2]
[372403803,1752629453887,-460.0,0.00021917,2]
[372403804,1752629453898,-2424.46,0.00021917,2]
[372403805,1752629453908,-607.06,0.00021917,2]
[372403806,1752629453918,-460.0,0.00021917,2]
[372403807,1752629453928,-462.52583876,0.00021917,2]
[372403808,1752629453938,-460.0,0.00021917,2]
[372403809,1752629453949,-460.0,0.00021917,2]
[372403810,1752629453959,-460.0,0.00021917,2]
[372403811,1752629453969,-460.0,0.00021917,2]
[372403812,1752629453979,-1264.19,0.00021917,2]
[372403813,1752629453988,-460.0,0.00021917,2]
[372403814,1752629453998,-460.0,0.00021917,2]
[372403815,1752629454008,-1382.36,0.00021917,2]
[372403816,1752629454018,-460.0,0.00021917,2]
[372403817,1752629454027,-524.6,0.00021917,2]
[372403818,1752629454037,-719.22,0.00021917,2]
[372403819,1752629454046,-645.14,0.00021917,2]
[372403820,1752629454056,-460.0,0.00021917,2]
[372403821,1752629454065,-461.65,0.00021917,2]
[372403822,1752629454075,-460.0,0.00021917,2]
[372403823,1752629454084,-1670.11,0.00021917,2]
[372403824,1752629454094,-460.0,0.00021917,2]
[372403825,1752629454104,-3067.85,0.00021917,2]
[372403826,1752629454113,-460.0,0.00021917,2]
[372403827,1752629454123,-861.04,0.00021917,2]
[372403828,1752629454132,-505.32,0.00021917,2]
[372403829,1752629454142,-2419.2,0.00021917,2]
[372403830,1752629454152,-460.0,0.00021917,2]
[372403831,1752629454161,-460.0,0.00021917,2]
[372403832,1752629454174,-1052.48,0.00021917,2]
[372403833,1752629454184,-1587.98,0.00021917,2]
[372403834,1752629454194,-1378.03,0.00021917,2]
[372403835,1752629454204,-460.0,0.00021917,2]
[372403836,1752629454214,-3987.69,0.00021917,2]
[372403837,1752629454223,-463.36632489,0.00021917,2]
[372403838,1752629454233,-460.0,0.00021917,2]
[372403839,1752629454243,-565.49,0.00021917,2]
[372403840,1752629454252,-1393.54,0.00021917,2]
[372403841,1752629454262,-460.0,0.00021917,2]
[372403842,1752629454273,-1260.31,0.00021917,2]
[372403843,1752629454283,-460.0,0.00021917,2]
[372403844,1752629454293,-460.0,0.00021917,2]
[372403845,1752629454303,-460.0,0.00021917,2]
[372403846,1752629454315,-536.6,0.00021917,2]
[372403847,1752629454325,-460.0,0.00021917,2]
[372403848,1752629454335,-460.0,0.00021917,2]
[372403849,1752629454345,-460.0,0.00021917,2]
[372403850,1752629454354,-524.32,0.00021917,2]
[372403851,1752629454364,-846.46,0.00021917,2]
[372403852,1752629454374,-460.0,0.00021917,2]
[372403853,1752629454385,-460.0,0.00021917,2]
[372403854,1752629454396,-979.83,0.00021917,2]
[372403855,1752629454406,-971.62,0.00021917,2]
[372403856,1752629454415,-2761.87,0.00021917,2]
[372403857,1752629454425,-3359.11,0.00021917,2]
[372403858,1752629454434,-560.35,0.00021917,2]
[372403859,1752629454443,-460.0,0.00021917,2]
[372403860,1752629454452,-1260.84,0.00021917,2]
[372403861,1752629454461,-460.0,0.00021917,2]
[372403862,1752629454471,-460.0,0.00021917,2]
[372403863,1752629454481,-1351.02,0.00021917,2]
[372403864,1752629454491,-460.0,0.00021917,2]
[372403865,1752629454501,-460.0,0.00021917,2]
[372403866,1752629454511,-460.0,0.00021917,2]
[372403867,1752629454521,-460.0,0.00021917,2]
[372403868,1752629454531,-460.0,0.00021917,2]
[372403869,1752629454540,-595.56,0.00021917,2]
[372403870,1752629454550,-460.0,0.00021917,2]
[372403871,1752629454560,-460.0,0.00021917,2]
[372403872,1752629454570,-460.0,0.00021917,2]
[372403873,1752629454580,-2902.0,0.00021917,2]
[372403874,1752629454590,-605.54,0.00021917,2]
[372403875,1752629454599,-3374.72,0.00021917,2]
[372403876,1752629454609,-1280.8,0.00021917,2]
[372403877,1752629454619,-500.0,0.00021917,2]
[372403878,1752629454629,-460.0,0.00021917,2]
[372403879,1752629454639,-531.13,0.00021917,2]
[372403880,1752629454648,-460.0,0.00021917,2]
[372403881,1752629454658,-460.0,0.00021917,2]
[372403882,1752629454668,-460.0,0.00021917,2]
[372403883,1752629454679,-460.0,0.00021917,2]
[372403884,1752629454688,-617.41,0.00021917,2]
[372403885,1752629454698,-460.0,0.00021917,2]
[372403886,1752629454708,-460.0,0.00021917,2]
[372403887,1752629454717,-863.48,0.00021917,2]
[372403888,1752629454727,-1347.12,0.00021917,2]
[372403889,1752629454737,-635.03,0.00021917,2]
[372403890,1752629454748,-871.57,0.00021917,2]
[372403891,1752629454758,-460.0,0.00021917,2]
[372403892,1752629454768,-861.98,0.00021917,2]
[372403893,1752629454778,-883.65,0.00021917,2]
[372403894,1752629454787,-1058.15,0.00021917,2]
[372403895,1752629454798,-1928.75,0.00021917,2]
[372403896,1752629454807,-460.0,0.00021917,2]
[372403897,1752629454817,-460.0,0.00021917,2]
[372403898,1752629454827,-460.0,0.00021917,2]
[372403899,1752629454836,-1276.15,0.00021917,2]
[372403900,1752629454846,-460.0,0.00021917,2]
[372403901,1752629454855,-460.0,0.00021917,2]
[372403902,1752629454866,-460.0,0.00021917,2]
[372403903,1752629454875,-494.3,0.00021917,2]
[372403904,1752629454885,-895.31,0.00021917,2]
[372403905,1752629454895,-554.35,0.00021917,2]
[372403906,1752629454904,-460.0,0.00021917,2]
[372403907,1752629454914,-856.06,0.00021917,2]
[372403908,1752629454924,-460.0,0.00021917,2]
[372403909,1752629454934,-681.56,0.00021917,2]
[372403910,1752629454943,-932.43,0.00021917,2]
[372403911,1752629454954,-460.0,0.00021917,2]
[372403912,1752629454964,-1000.84,0.00021917,2]
[372403913,1752629454974,-3461.59,0.00021917,2]
[372403914,1752629454983,-581.67,0.00021917,2]
[372403915,1752629454994,-460.0,0.00021917,2]
[372403916,1752629455004,-3178.55,0.00021917,2]
[372403917,1752629455014,-462.64175835,0.00021917,2]
[372403918,1752629455024,-1049.83,0.00021917,2]
[372403919,1752629455033,-975.11,0.00021917,2]
[372403920,1752629455042,-1960.88,0.00021917,2]
[372403921,1752629455052,-1107.1,0.00021917,2]
[372403922,1752629455062,-460.0,0.00021917,2]
[372403923,1752629455074,-1061.06,0.00021917,2]
[372403924,1752629455083,-460.0,0.00021917,2]
[372403925,1752629455094,-460.0,0.00021917,2]
[372403926,1752629455103,-460.0,0.00021917,2]
[372403927,1752629455114,-460.0,0.00021917,2]
[372403928,1752629455124,-708.68,0.00021917,2]
[372403929,1752629455133,-490.0,0.00021917,2]
[372403930,1752629455143,-544.21,0.00021917,2]
[372403931,1752629455153,-1047.29,0.00021917,2]
[372403932,1752629455162,-460.0,0.00021917,2]
[372403933,1752629455173,-945.81,0.00021917,2]
[372403934,1752629455183,-460.0,0.00021917,2]
[372403935,1752629455193,-350.87082229,0.00021917,2]
[372403936,1752629455202,-460.0,0.00021917,2]
[372403937,1752629455212,-1342.32,0.00021917,2]
[372403938,1752629455222,-1095.07,0.00021917,2]
[372403939,1752629455231,-429.22045164,0.00021917,2]
[372403940,1752629455241,-1010.07,0.00021917,2]
[372403941,1752629455251,-460.0,0.00021917,2]
[372403942,1752629455260,-460.0,0.00021917,2]
[372403943,1752629455270,-460.0,0.00021917,2]
[372403944,1752629455280,-435.0,0.00021917,2]
[372403945,1752629455290,-734.29,0.00021917,2]
[372403946,1752629455299,-1410.77,0.00021917,2]
[372403947,1752629455313,-460.0,0.00021917,2]
[372403948,1752629455323,-2320.27,0.00021917,2]
[372403949,1752629455332,-495.7,0.00021917,2]
[372403950,1752629455342,-460.0,0.00021917,2]
[372403951,1752629455351,-460.0,0.00021917,2]
[372403952,1752629455361,-460.0,0.00021917,2]
[372403953,1752629455370,-460.0,0.00021917,2]
[372403954,1752629455379,-2391.37,0.00021917,2]
[372403955,1752629455389,-1567.11,0.00021917,2]
[372403956,1752629455398,-460.0,0.00021917,2]
[372403957,1752629455408,-1416.58,0.00021917,2]
[372403958,1752629455419,-460.0,0.00021917,2]
[372403959,1752629455428,-500.0,0.00021917,2]
[372403960,1752629455438,-460.0,0.00021917,2]
[372403961,1752629455447,-500.0,0.00021917,2]
[372403962,1752629455457,-500.0,0.00021917,2]
[372403963,1752629455466,-460.0,0.00021917,2]
[372403964,1752629455476,-500.0,0.00021917,2]
[372403965,1752629455485,-460.0,0.00021917,2]
[372403966,1752629455495,-500.0,0.00021917,2]
[372403967,1752629455505,-500.0,0.00021917,2]
[372403968,1752629455515,-500.0,0.00021917,2]
[372403969,1752629455524,-1239.65,0.00021917,2]
[372403970,1752629455534,-500.0,0.00021917,2]
[372403971,1752629455544,-500.0,0.00021917,2]
[372403972,1752629455554,-500.0,0.00021917,2]
[372403973,1752629455564,-500.0,0.00021917,2]
[372403974,1752629455573,-500.0,0.00021917,2]
[372403975,1752629455583,-500.0,0.00021917,2]
[372403976,1752629455592,-500.0,0.00021917,2]
[372403977,1752629455602,-500.0,0.00021917,2]
[372403978,1752629455611,-563.57,0.00021917,2]
[372403979,1752629455620,-500.0,0.00021917,2]
[372403980,1752629455630,-500.0,0.00021917,2]
[372403981,1752629455639,-460.0,0.00021917,2]
[372403982,1752629455648,-500.0,0.00021917,2]
[372403983,1752629455658,-500.0,0.00021917,2]
[372403984,1752629455668,-500.0,0.00021917,2]
[372403985,1752629455677,-460.0,0.00021917,2]
[372403986,1752629455686,-500.0,0.00021917,2]
[372403987,1752629455696,-500.0,0.00021917,2]
[372403988,1752629455705,-672.37,0.00021917,2]
[372403989,1752629455715,-1810.59,0.00021917,2]
[372403990,1752629455723,-460.0,0.00021917,2]
[372403991,1752629455732,-460.0,0.00021917,2]
[372403992,1752629455742,-598.4,0.00021917,2]
[372403993,1752629455751,-460.0,0.00021917,2]
[372403994,1752629455759,-460.0,0.00021917,2]
[372403995,1752629455769,-836.8,0.00021917,2]
[372403996,1752629455779,-460.0,0.00021917,2]
[372403997,1752629455788,-460.0,0.00021917,2]
[372403998,1752629455798,-460.0,0.00021917,2]
[372403999,1752629455807,-460.0,0.00021917,2]
[372404000,1752629455817,-707.88,0.00021917,2]
[372404001,1752629455826,-1005.03,0.00021917,2]
[372404002,1752629455836,-460.0,0.00021917,2]
[372404003,1752629455845,-1438.02,0.00021917,2]
[372404004,1752629455855,-1053.98,0.00021917,2]
[372404005,1752629455864,-1106.93,0.00021917,2]
[372404006,1752629456253,-460.0,0.00021917,2]
[372404007,1752629456312,-817.88,0.00021917,2]
[372404008,1752629456322,-460.0,0.00021917,2]
[372404009,1752629456332,-460.0,0.00021917,2]
[372404010,1752629456342,-500.0,0.00021917,2]
[372404011,1752629456351,-500.0,0.00021917,2]
[372404012,1752629456363,-500.0,0.00021917,2]
[372404013,1752629456372,-500.0,0.00021917,2]
[372404014,1752629456382,-478.34,0.00021917,2]
[372404015,1752629456392,-500.0,0.00021917,2]
[372404016,1752629456402,-500.0,0.00021917,2]
[372404017,1752629456411,-460.0,0.00021917,2]
[372404018,1752629456422,-460.0,0.00021917,2]
[372404019,1752629456431,-1854.1,0.00021917,2]
[372404020,1752629456441,-460.0,0.00021917,2]
[372404021,1752629456451,-2628.26,0.00021917,2]
[372404022,1752629456461,-513.53,0.00021917,2]
[372404023,1752629456471,-460.0,0.00021917,2]
[372404024,1752629456481,-13820.76,0.00021917,2]
[372404025,1752629456490,-460.0,0.00021917,2]
[372404026,1752629456499,-886.91,0.00021917,2]
[372404027,1752629456509,-460.0,0.00021917,2]
[372404028,1752629456518,-460.0,0.00021917,2]
[372404029,1752629456527,-1941.93,0.00021917,2]
[372404030,1752629456537,-1362.89,0.00021917,2]
[372404031,1752629456546,-1207.14,0.00021917,2]
[372404032,1752629456555,-500.0,0.00021917,2]
[372404033,1752629456565,-997.73,0.00021917,2]
[372404034,1752629456574,-250.0,0.00021917,2]
[372404035,1752629456583,-204.90988496,0.00021917,2]
[372404036,1752629456592,-768.29,0.00021917,2]
[372404037,1752629456602,-3588.39,0.00021917,2]
[372404038,1752629456611,-460.0,0.00021917,2]
[372404039,1752629456620,-462.93,0.00021917,2]
[372404040,1752629456629,-822.69,0.00021917,2]
[372404041,1752629456638,-1844.52,0.00021917,2]
[372404042,1752629456648,-460.0,0.00021917,2]
[372404043,1752629456658,-2450.21,0.00021917,2]
[372404044,1752629456667,-160.0,0.00021917,2]
[372404045,1752629456677,-460.0,0.00021917,2]
[372404046,1752629456686,-733.72,0.00021917,2]
[372404047,1752629456695,-684.54,0.00021917,2]
[372404048,1752629456705,-14165.18,0.00021917,2]
[372404049,1752629456714,-1568.67,0.00021917,2]
[372404050,1752629456723,-733.9,0.00021917,2]
[372404051,1752629456733,-460.0,0.00021917,2]
[372404052,1752629456742,-460.0,0.00021917,2]
[372404053,1752629456751,-2074.56,0.00021917,2]
[372404054,1752629456761,-460.0,0.00021917,2]
[372404055,1752629456770,-589.81,0.00021917,2]
[372404056,1752629456780,-460.0,0.00021917,2]
[372404057,1752629456789,-460.0,0.00021917,2]
[372404058,1752629456799,-460.0,0.00021917,2]
[372404059,1752629456809,-463.12088755,0.00021917,2]
[372404060,1752629456818,-2605.81,0.00021917,2]
[372404061,1752629456828,-3495.38,0.00021917,2]
[372404062,1752629456837,-460.0,0.00021917,2]
[372404063,1752629456846,-460.0,0.00021917,2]
[372404064,1752629456856,-504.94,0.00021917,2]
[372404065,1752629456866,-859.43,0.00021917,2]
[372404066,1752629456875,-770.94,0.00021917,2]
[372404067,1752629456884,-460.0,0.00021917,2]
[372404068,1752629456893,-460.0,0.00021917,2]
[372404069,1752629456903,-460.0,0.00021917,2]
[372404070,1752629456912,-2953.59,0.00021917,2]
[372404071,1752629456923,-460.0,0.00021917,2]
[372404072,1752629456932,-1104.61,0.00021917,2]
[372404073,1752629456941,-460.0,0.00021917,2]
[372404074,1752629456950,-460.0,0.00021917,2]
[372404075,1752629456959,-2380.05,0.00021917,2]
[372404076,1752629456968,-460.0,0.00021917,2]
[372404077,1752629456977,-460.0,0.00021917,2]
[372404078,1752629456988,-859.85,0.00021917,2]
[372404079,1752629456997,-1087.31,0.00021917,2]
[372404080,1752629457007,-544.55,0.00021917,2]
[372404081,1752629457016,-1857.72,0.00021917,2]
[372404082,1752629457025,-1026.46,0.00021917,2]
[372404083,1752629457035,-460.0,0.00021917,2]
[372404084,1752629457044,-1001.42,0.00021917,2]
[372404085,1752629457053,-7800.54,0.00021917,2]
[372404086,1752629457062,-5421.49,0.00021917,2]
[372404087,1752629457072,-460.0,0.00021917,2]
[372404088,1752629457081,-2177.14,0.00021917,2]
[372404089,1752629457090,-345.97676065,0.00021917,2]
[372404090,1752629457099,-460.0,0.00021917,2]
[372404091,1752629457108,-460.0,0.00021917,2]
[372404092,1752629457117,-7985.62,0.00021917,2]
[372404093,1752629457127,-3905.12,0.00021917,2]
[372404094,1752629457136,-460.0,0.00021917,2]
[372404095,1752629457145,-460.0,0.00021917,2]
[372404096,1752629457154,-1563.28,0.00021917,2]
[372404097,1752629457163,-460.0,0.00021917,2]
[372404098,1752629457173,-460.0,0.00021917,2]
[372404099,1752629457182,-460.0,0.00021917,2]
[372404100,1752629457191,-4359.67,0.00021917,2]
[372404101,1752629457201,-5141.29,0.00021917,2]
[372404102,1752629457210,-460.0,0.00021917,2]
[372404103,1752629457219,-460.0,0.00021917,2]
[372404104,1752629457228,-460.0,0.00021917,2]
[372404105,1752629457237,-881.86,0.00021917,2]
[372404106,1752629457246,-2959.32,0.00021917,2]
[372404107,1752629457256,-1229.89,0.00021917,2]
[372404108,1752629457266,-460.0,0.00021917,2]
[372404109,1752629457275,-546.57,0.00021917,2]
[372404110,1752629457285,-2313.37,0.00021917,2]
[372404111,1752629457295,-1813.0,0.00021917,2]
[372404112,1752629457305,-460.0,0.00021917,2]
[372404113,1752629457316,-7105.35,0.00021917,2]
[372404114,1752629457325,-533.16,0.00021917,2]
[372404115,1752629457335,-460.0,0.00021917,2]
[372404116,1752629457344,-8428.06,0.00021917,2]
[372404117,1752629457354,-2033.24,0.00021917,2]
[372404118,1752629457363,-1196.48,0.00021917,2]
[372404119,1752629457373,-500.0,0.00021917,2]
[372404120,1752629457382,-460.0,0.00021917,2]
[372404121,1752629457392,-4685.06,0.00021917,2]
[372404122,1752629457401,-460.0,0.00021917,2]
[372404123,1752629457410,-1513.78,0.00021917,2]
[372404124,1752629457420,-948.47,0.00021917,2]
[372404125,1752629457429,-1519.47,0.00021917,2]
[372404126,1752629457439,-2110.1,0.00021917,2]
[372404127,1752629457448,-580.94,0.00021917,2]
[372404128,1752629457458,-759.65,0.00021917,2]
[372404129,1752629457468,-25825.13,0.00021917,2]
[372404130,1752629457477,-460.0,0.00021917,2]
[372404131,1752629457487,-424.2397253,0.00021917,2]
[372404132,1752629457496,-460.0,0.00021917,2]
[372404133,1752629457505,-5396.34,0.00021917,2]
[372404134,1752629457515,-460.0,0.00021917,2]
[372404135,1752629457524,-821.02,0.00021917,2]
[372404136,1752629457534,-460.0,0.00021917,2]
[372404137,1752629457543,-460.0,0.00021917,2]
[372404138,1752629457552,-460.0,0.00021917,2]
[372404139,1752629457561,-460.0,0.00021917,2]
[372404140,1752629457570,-462.78277183,0.00021917,2]
[372404141,1752629457578,-1907.77,0.00021917,2]
[372404142,1752629457587,-460.0,0.00021917,2]
[372404143,1752629457596,-11700.46,0.00021917,2]
[372404144,1752629457605,-460.0,0.00021917,2]
[372404145,1752629457614,-744.7,0.00021917,2]
[372404146,1752629457623,-2308.56,0.00021917,2]
[372404147,1752629457633,-790.8,0.00021917,2]
[372404148,1752629457642,-460.0,0.00021917,2]
[372404149,1752629457651,-4570.49,0.00021917,2]
[372404150,1752629457661,-2718.18,0.00021917,2]
[372404151,1752629457671,-460.0,0.00021917,2]
[372404152,1752629457680,-460.0,0.00021917,2]
[372404153,1752629457689,-1824.55,0.00021917,2]
[372404154,1752629457699,-460.0,0.00021917,2]
[372404155,1752629457708,-460.0,0.00021917,2]
[372404156,1752629457718,-460.0,0.00021917,2]
[372404157,1752629457727,-460.0,0.00021917,2]
[372404158,1752629457735,-1819.48,0.00021917,2]
[372404159,1752629457745,-460.0,0.00021917,2]
[372404160,1752629457754,-460.0,0.00021917,2]
[372404161,1752629457763,-460.0,0.00021917,2]
[372404162,1752629457773,-460.0,0.00021917,2]
[372404163,1752629457782,-6211.89,0.00021917,2]
[372404164,1752629457791,-596.99,0.00021917,2]
[372404165,1752629457801,-795.47,0.00021917,2]
[372404166,1752629457811,-460.0,0.00021917,2]
[372404167,1752629457821,-1343.96,0.00021917,2]
[372404168,1752629457830,-871.11,0.00021917,2]
[372404169,1752629457840,-5524.25,0.00021917,2]
[372404170,1752629457849,-460.0,0.00021917,2]
[372404171,1752629457859,-5439.97,0.00021917,2]
[372404172,1752629457869,-462.08143262,0.00021917,2]
[372404173,1752629457879,-460.0,0.00021917,2]
[372404174,1752629457889,-3202.35,0.00021917,2]
[372404175,1752629457899,-460.0,0.00021917,2]
[372404176,1752629457908,-460.0,0.00021917,2]
[372404177,1752629457918,-1536.19,0.00021917,2]
[372404178,1752629457927,-2189.5,0.00021917,2]
[372404179,1752629457937,-460.0,0.00021917,2]
[372404180,1752629457946,-813.84,0.00021917,2]
[372404181,1752629457955,-460.0,0.00021917,2]
[372404182,1752629457965,-460.0,0.00021917,2]
[372404183,1752629457974,-1290.22,0.00021917,2]
[372404184,1752629457984,-509.91,0.00021917,2]
[372404185,1752629457994,-4676.4,0.00021917,2]
[372404186,1752629458004,-460.0,0.00021917,2]
[372404187,1752629458013,-4921.37,0.00021917,2]
[372404188,1752629458023,-460.0,0.00021917,2]
[372404189,1752629458033,-1686.71,0.00021917,2]
[372404190,1752629458042,-460.0,0.00021917,2]
[372404191,1752629458051,-1654.69,0.00021917,2]
[372404192,1752629458062,-460.0,0.00021917,2]
[372404193,1752629458071,-657.49,0.00021917,2]
[372404194,1752629458086,-1308.98,0.00021917,2]
[372404195,1752629458097,-460.0,0.00021917,2]
[372404196,1752629458107,-460.0,0.00021917,2]
[372404197,1752629458117,-4544.82,0.00021917,2]
[372404198,1752629458126,-4007.24,0.00021917,2]
[372404199,1752629458136,-460.0,0.00021917,2]
[372404200,1752629458146,-1263.31,0.00021917,2]
[372404201,1752629458155,-460.0,0.00021917,2]
[372404202,1752629458165,-5763.45,0.00021917,2]
[372404203,1752629458175,-1650.09,0.00021917,2]
[372404204,1752629458184,-460.0,0.00021917,2]
[372404205,1752629458194,-627.86,0.00021917,2]
[372404206,1752629458203,-2303.19,0.00021917,2]
[372404207,1752629458213,-1780.59,0.00021917,2]
[372404208,1752629458222,-460.0,0.00021917,2]
[372404209,1752629458231,-468.51,0.00021917,2]
[372404210,1752629458240,-978.05,0.00021917,2]
[372404211,1752629458250,-460.0,0.00021917,2]
[372404212,1752629458259,-1996.93,0.00021917,2]
[372404213,1752629458269,-460.0,0.00021917,2]
[372404214,1752629458278,-460.0,0.00021917,2]
[372404215,1752629458287,-1291.93,0.00021917,2]
[372404216,1752629458297,-460.0,0.00021917,2]
[372404217,1752629458310,-460.0,0.00021917,2]
[372404218,1752629458319,-460.0,0.00021917,2]
[372404219,1752629458328,-6580.75,0.00021917,2]
[372404220,1752629458338,-674.98,0.00021917,2]
[372404221,1752629458348,-6586.63,0.00021917,2]
[372404222,1752629458358,-935.23,0.00021917,2]
[372404223,1752629458368,-460.0,0.00021917,2]
[372404224,1752629458378,-566.99,0.00021917,2]
[372404225,1752629458389,-460.0,0.00021917,2]
[372404226,1752629458399,-490.0,0.00021917,2]
[372404227,1752629458409,-6398.95,0.00021917,2]
[372404228,1752629458419,-460.0,0.00021917,2]
[372404229,1752629458429,-460.0,0.00021917,2]
[372404230,1752629458439,-6464.11,0.00021917,2]
[372404231,1752629458448,-1847.77,0.00021917,2]
[372404232,1752629458458,-2967.37,0.00021917,2]
[372404233,1752629458468,-462.66642601,0.00021917,2]
[372404234,1752629458478,-460.0,0.00021917,2]
[372404235,1752629458487,-460.0,0.00021917,2]
[372404236,1752629458497,-3684.75,0.00021917,2]
[372404237,1752629458508,-4690.58,0.00021917,2]
[372404238,1752629458517,-1168.74,0.00021917,2]
[372404239,1752629458527,-18367.897265,0.00021917,2]
[372404240,1752629458537,-460.0,0.00021917,2]
[372404241,1752629458546,-18367.897265,0.00021917,2]
[372404242,1752629458556,-1121.83,0.00021917,2]
[372404243,1752629458565,-460.0,0.00021917,2]
[372404244,1752629458575,-433.623738,0.00021917,2]
[372404245,1752629458584,-799.05,0.00021917,2]
[372404246,1752629458594,-433.623738,0.00021917,2]
[372404247,1752629458603,-197.380825,0.00021917,2]
[372404248,1752629458612,-1406.35,0.00021917,2]
[372404249,1752629458628,-197.380825,0.00021917,2]
[372404250,1752629458638,-460.0,0.00021917,2]
[372404251,1752629458648,-21315.01,0.00021917,2]
[372404252,1752629458657,-460.0,0.00021917,2]
[372404253,1752629458666,-21875.922838,0.00021917,2]
[372404254,1752629458676,-1330.04,0.00021917,2]
[372404255,1752629458685,-21875.922838,0.00021917,2]
[372404256,1752629458694,-2064.66,0.00021917,2]
[372404257,1752629458703,-460.0,0.00021917,2]
[372404258,1752629458712,-5056.56,0.00021917,2]
[372404259,1752629458721,-1874.79,0.00021917,2]
[372404260,1752629458730,-9890.64,0.00021917,2]
[372404261,1752629458739,-460.0,0.00021917,2]
[372404262,1752629458748,-21741.441583,0.00021917,2]
[372404263,1752629458757,-21741.441583,0.00021917,2]
[372404264,1752629458767,-2925.26,0.00021917,2]